fUSD/lending_fUSD_20240119
["ID","MTS","AMOUNT","RATE_DAILY","PERIOD"]
[312185151,1705683044558,-460.71408697,0.00021917,2]
[312185152,1705683044568,-543.9,0.00021917,2]
[312185153,1705683044578,-6.04556303,0.00021917,2]
[312185154,1705683044589,-493.95443697,0.00021917,2]
[312185156,1705683044599,-500.0,0.00021917,2]
[312185158,1705683044610,-216.54556303,0.00021917,2]
[312185159,1705683044635,-283.45443697,0.00021917,2]
[312185160,1705683044645,-500.0,0.00021917,2]
[312185161,1705683044655,-506.65,0.00021917,2]
[312185162,1705683044664,-500.0,0.00021917,2]
[312185163,1705683044674,-500.0,0.00021917,2]
[312185164,1705683044684,-500.0,0.00021917,2]
[312185165,1705683044694,-32.20516735,0.00021917,2]
[312185166,1705683044708,-467.79483265,0.00021917,2]
[312185167,1705683044719,-500.0,0.00021917,2]
[312185168,1705683044729,-500.0,0.00021917,2]
[312185169,1705683044738,-500.0,0.00021917,2]
[312185170,1705683044747,-500.0,0.00021917,2]
[312185171,1705683044756,-929.75743091,0.00021917,2]
[312185172,1705683044770,-174.69256909,0.00021917,2]
[312185173,1705683044780,-941.69,0.00021917,2]
[312185174,1705683044789,-287.07853471,0.00021917,2]
[312185175,1705683044798,-239.58451843,0.00021917,2]
[312185176,1705683044807,-645.8,0.00021917,2]
[312185177,1705683044817,-500.0,0.00021917,2]
[312185178,1705683044826,-411.15437577,0.00021917,2]
[312185180,1705683044838,-88.84562423,0.00021917,2]
[312185182,1705683044846,-500.0,0.00021917,2]
[312185184,1705683044855,-500.0,0.00021917,2]
[312185186,1705683044864,-500.0,0.00021917,2]
[312185188,1705683044873,-500.0,0.00021917,2]
[312185190,1705683044883,-500.0,0.00021917,2]
[312185192,1705683044892,-500.0,0.00021917,2]
[312185194,1705683044900,-894.65,0.00021917,2]
[312185196,1705683044910,-500.0,0.00021917,2]
[312185198,1705683044919,-500.0,0.00021917,2]
[312185200,1705683044928,-500.0,0.00021917,2]
[312185202,1705683044937,-500.0,0.00021917,2]
[312185204,1705683044946,-500.0,0.00021917,2]
[312185206,1705683044955,-304.8680525,0.00021917,2]
[312185208,1705683044963,-500.0,0.00021917,2]
[312185210,1705683044972,-686.31,0.00021917,2]
[312185211,1705683044981,-764.46,0.00021917,2]
[312185212,1705683044991,-500.0,0.00021917,2]
[312185213,1705683045000,-500.0,0.00021917,2]
[312185214,1705683045012,-4743.89,0.00021917,2]
[312185216,1705683045022,-500.0,0.00021917,2]
[312185218,1705683045031,-596.97,0.00021917,2]
[312185219,1705683045042,-500.0,0.00021917,2]
[312185221,1705683045051,-500.0,0.00021917,2]
[312185223,1705683045062,-500.0,0.00021917,2]
[312185224,1705683045077,-500.0,0.00021917,2]
[312185225,1705683045086,-500.0,0.00021917,2]
[312185226,1705683045096,-500.0,0.00021917,2]
[312185227,1705683045107,-500.0,0.00021917,2]
[312185228,1705683045117,-500.0,0.00021917,2]
[312185229,1705683045127,-998.08,0.00021917,2]
[312185230,1705683045136,-500.0,0.00021917,2]
[312185231,1705683045145,-500.0,0.00021917,2]
[312185232,1705683045156,-769.09,0.00021917,2]
[312185233,1705683045167,-500.0,0.00021917,2]
[312185234,1705683045176,-500.0,0.00021917,2]
[312185235,1705683045186,-2508.05,0.00021917,2]
[312185236,1705683045195,-1118.72,0.00021917,2]
[312185237,1705683045204,-500.0,0.00021917,2]
[312185238,1705683045214,-500.0,0.00021917,2]
[312185239,1705683045223,-500.0,0.00021917,2]
[312185240,1705683045232,-500.0,0.00021917,2]
[312185241,1705683045241,-500.0,0.00021917,2]
[312185242,1705683045250,-500.0,0.00021917,2]
[312185243,1705683045262,-1060.11,0.00021917,2]
[312185244,1705683045271,-500.0,0.00021917,2]
[312185245,1705683045280,-848.83,0.00021917,2]
[312185246,1705683045290,-500.0,0.00021917,2]
[312185247,1705683045299,-1593.89,0.00021917,2]
[312185248,1705683045308,-500.0,0.00021917,2]
[312185249,1705683045317,-500.0,0.00021917,2]
[312185250,1705683045328,-500.0,0.00021917,2]
[312185251,1705683045338,-500.0,0.00021917,2]
[312185252,1705683045348,-161.01,0.00021917,2]
[312185253,1705683045358,-500.0,0.00021917,2]
[312185254,1705683045369,-500.0,0.00021917,2]
[312185255,1705683045380,-500.0,0.00021917,2]
[312185256,1705683045389,-847.4,0.00021917,2]
[312185258,1705683045399,-500.0,0.00021917,2]
[312185260,1705683045408,-571.07,0.00021917,2]
[312185261,1705683045417,-659.36,0.00021917,2]
[312185263,1705683045427,-500.0,0.00021917,2]
[312185264,1705683045436,-500.0,0.00021917,2]
[312185265,1705683045445,-1164.14,0.00021917,5]
[312185266,1705683045454,-500.0,0.00021917,2]
[312185267,1705683045463,-500.0,0.00021917,2]
[312185268,1705683045472,-500.0,0.00021917,2]
[312185269,1705683045481,-1278.69,0.00021917,2]
[312185272,1705683045490,-500.0,0.00021917,2]
[312185276,1705683045500,-500.0,0.00021917,2]
[312185278,1705683045512,-505.35321935,0.00021917,2]
[312185281,1705683045521,-500.0,0.00021917,2]
[312185285,1705683045531,-500.0,0.00021917,2]
[312185286,1705683045540,-500.0,0.00021917,2]
[312185288,1705683045549,-888.15,0.00021917,2]
[312185290,1705683045558,-500.0,0.00021917,2]
[312185292,1705683045567,-500.0,0.00021917,2]
[312185294,1705683045576,-500.0,0.00021917,2]
[312185296,1705683045585,-500.0,0.00021917,2]
[312185298,1705683045594,-502.32012563,0.00021917,2]
[312185303,1705683045603,-500.0,0.00021917,2]
[312185308,1705683045614,-801.28,0.00021917,2]
[312185312,1705683045623,-500.0,0.00021917,2]
[312185316,1705683045633,-1644.51,0.00021917,2]
[312185320,1705683045643,-1871.72,0.00021917,2]
[312185324,1705683045652,-1118.42,0.00021917,2]
[312185327,1705683045661,-500.0,0.00021917,2]
[312185330,1705683045670,-500.0,0.00021917,2]
[312185334,1705683045681,-1020.01,0.00021917,2]
[312185338,1705683045690,-500.0,0.00021917,2]
[312185342,1705683045700,-500.0,0.00021917,2]
[312185346,1705683045709,-1224.15,0.00021917,2]
[312185350,1705683045720,-500.0,0.00021917,2]
[312185353,1705683045729,-500.0,0.00021917,2]
[312185356,1705683045738,-500.0,0.00021917,2]
[312185359,1705683045747,-500.0,0.00021917,2]
[312185361,1705683045757,-500.0,0.00021917,2]
[312185363,1705683045768,-500.0,0.00021917,2]
[312185365,1705683045777,-500.0,0.00021917,2]
[312185367,1705683045786,-500.0,0.00021917,2]
[312185369,1705683045796,-1110.9,0.00021917,2]
[312185370,1705683045805,-500.0,0.00021917,2]
[312185372,1705683045814,-500.0,0.00021917,2]
[312185374,1705683045823,-500.0,0.00021917,2]
[312185376,1705683045832,-500.0,0.00021917,2]
[312185378,1705683045841,-500.0,0.00021917,2]
[312185380,1705683045850,-524.76413305,0.00021917,2]
[312185383,1705683045859,-862.37,0.00021917,2]
[312185385,1705683045869,-500.0,0.00021917,2]
[312185386,1705683045878,-796.91,0.00021917,2]
[312185388,1705683045887,-500.0,0.00021917,2]
[312185391,1705683045896,-500.0,0.00021917,2]
[312185393,1705683045905,-500.0,0.00021917,2]
[312185395,1705683045915,-500.0,0.00021917,2]
[312185397,1705683045924,-500.0,0.00021917,2]
[312185399,1705683045933,-500.0,0.00021917,2]
[312185401,1705683045941,-500.0,0.00021917,2]
[312185403,1705683045950,-500.0,0.00021917,2]
[312185404,1705683045959,-500.0,0.00021917,2]
[312185406,1705683045968,-500.0,0.00021917,2]
[312185409,1705683045977,-500.0,0.00021917,2]
[312185411,1705683045986,-500.0,0.00021917,2]
[312185413,1705683045995,-1462.02,0.00021917,2]
[312185415,1705683046004,-500.0,0.00021917,2]
[312185416,1705683046018,-691.66,0.00021917,2]
[312185418,1705683046027,-500.0,0.00021917,2]
[312185420,1705683046036,-500.0,0.00021917,2]
[312185422,1705683046045,-500.0,0.00021917,2]
[312185424,1705683046055,-605.87,0.00021917,2]
[312185427,1705683046065,-500.0,0.00021917,2]
[312185429,1705683046074,-500.0,0.00021917,2]
[312185430,1705683046083,-500.0,0.00021917,2]
[312185432,1705683046092,-868.31,0.00021917,2]
[312185435,1705683046101,-500.0,0.00021917,2]
[312185436,1705683046111,-1784.08,0.00021917,2]
[312185438,1705683046120,-1463.66,0.00021917,2]
[312185440,1705683046129,-500.0,0.00021917,2]
[312185442,1705683046138,-4707.09,0.00021917,2]
[312185443,1705683046147,-500.0,0.00021917,2]
[312185444,1705683046156,-2694.32,0.00021917,2]
[312185445,1705683046165,-500.0,0.00021917,2]
[312185447,1705683046174,-500.0,0.00021917,2]
[312185449,1705683046183,-6030.03,0.00021917,2]
[312185451,1705683046192,-500.0,0.00021917,2]
[312185453,1705683046201,-500.0,0.00021917,2]
[312185455,1705683046210,-500.0,0.00021917,2]
[312185457,1705683046219,-500.0,0.00021917,2]
[312185459,1705683046228,-500.0,0.00021917,2]
[312185461,1705683046238,-500.0,0.00021917,2]
[312185463,1705683046247,-212.84356312,0.00021917,2]
[312185465,1705683046255,-500.0,0.00021917,2]
[312185467,1705683046266,-500.0,0.00021917,2]
[312185469,1705683046275,-500.0,0.00021917,2]
[312185471,1705683046284,-500.0,0.00021917,2]
[312185473,1705683046293,-500.0,0.00021917,2]
[312185475,1705683046302,-18704.77,0.00021917,2]
[312185477,1705683046311,-503.17088683,0.00021917,2]
[312185479,1705683046320,-500.0,0.00021917,2]
[312185481,1705683046329,-545.40359257,0.00021917,2]
[312185483,1705683046342,-2454.23,0.00021917,2]
[312185485,1705683046351,-500.0,0.00021917,2]
[312185487,1705683046360,-500.0,0.00021917,2]
[312185489,1705683046369,-500.0,0.00021917,2]
[312185491,1705683046378,-500.0,0.00021917,2]
[312185493,1705683046388,-500.0,0.00021917,2]
[312185495,1705683046397,-768.06,0.00021917,2]
[312185497,1705683046406,-500.0,0.00021917,2]
[312185499,1705683046415,-4131.9,0.00021917,2]
[312185501,1705683046425,-500.0,0.00021917,2]
[312185503,1705683046434,-8316.81,0.00021917,2]
[312185505,1705683046443,-500.0,0.00021917,2]
[312185506,1705683046452,-500.0,0.00021917,2]
[312185508,1705683046461,-504.61325209,0.00021917,2]
[312185510,1705683046470,-500.0,0.00021917,2]
[312185512,1705683046479,-500.0,0.00021917,2]
[312185514,1705683046489,-504.3467824,0.00021917,2]
[312185516,1705683046498,-500.0,0.00021917,2]
[312185518,1705683046507,-500.0,0.00021917,2]
[312185520,1705683046519,-500.0,0.00021917,2]
[312185522,1705683046528,-1268.12,0.00021917,2]
[312185524,1705683046537,-500.0,0.00021917,2]
[312185526,1705683046546,-500.0,0.00021917,2]
[312185527,1705683046556,-500.0,0.00021917,2]
[312185529,1705683046565,-500.0,0.00021917,2]
[312185531,1705683046575,-500.0,0.00021917,2]
[312185532,1705683046584,-3687.65,0.00021917,2]
[312185535,1705683046593,-500.0,0.00021917,2]
[312185538,1705683046602,-500.0,0.00021917,2]
[312185541,1705683046613,-1214.61,0.00021917,2]
[312185543,1705683046622,-500.0,0.00021917,2]
[312185545,1705683046634,-500.0,0.00021917,2]
[312185547,1705683046644,-500.0,0.00021917,2]
[312185549,1705683046654,-1000.0,0.00021917,2]
[312185551,1705683046663,-617.11,0.00021917,2]
[312185552,1705683046672,-863.99,0.00021917,2]
[312185555,1705683046681,-979.22,0.00021917,2]
[312185558,1705683046689,-500.0,0.00021917,2]
[312185561,1705683046699,-500.0,0.00021917,2]
[312185563,1705683046709,-500.0,0.00021917,2]
[312185566,1705683046717,-500.0,0.00021917,2]
[312185570,1705683046726,-500.0,0.00021917,2]
[312185573,1705683046735,-500.0,0.00021917,2]
[312185577,1705683046744,-2687.47,0.00021917,2]
[312185581,1705683046753,-500.0,0.00021917,2]
[312185584,1705683046763,-500.0,0.00021917,2]
[312185586,1705683046773,-569.72,0.00021917,2]
[312185589,1705683046782,-710.2,0.00021917,2]
[312185592,1705683046791,-500.0,0.00021917,2]
[312185594,1705683046801,-500.0,0.00021917,2]
[312185597,1705683046810,-765.99,0.00021917,2]
[312185600,1705683046821,-500.0,0.00021917,2]
[312185603,1705683046830,-500.0,0.00021917,2]
[312185606,1705683046839,-505.43824664,0.00021917,10]
[312185608,1705683046849,-664.73,0.00021917,2]
[312185611,1705683046858,-590.56,0.00021917,2]
[312185615,1705683046867,-11160.91,0.00021917,2]
[312185618,1705683046876,-500.0,0.00021917,2]
[312185622,1705683046885,-500.0,0.00021917,2]
[312185625,1705683046894,-500.0,0.00021917,2]
[312185627,1705683046903,-500.0,0.00021917,2]
[312185629,1705683046913,-500.0,0.00021917,2]
[312185630,1705683046922,-2529.14,0.00021917,2]
[312185632,1705683046931,-500.0,0.00021917,2]
[312185634,1705683046940,-500.0,0.00021917,2]
[312185636,1705683046949,-500.0,0.00021917,2]
[312185637,1705683046958,-500.0,0.00021917,2]
[312185639,1705683046967,-1962.44,0.00021917,2]
[312185641,1705683046976,-500.0,0.00021917,2]
[312185643,1705683046985,-500.0,0.00021917,2]
[312185644,1705683046994,-500.0,0.00021917,2]
[312185646,1705683047003,-500.0,0.00021917,2]
[312185648,1705683047014,-5059.39,0.00021917,2]
[312185650,1705683047023,-500.0,0.00021917,2]
[312185651,1705683047033,-500.0,0.00021917,2]
[312185652,1705683047042,-500.0,0.00021917,2]
[312185653,1705683047051,-500.0,0.00021917,2]
[312185654,1705683047060,-500.0,0.00021917,2]
[312185655,1705683047070,-500.0,0.00021917,2]
[312185657,1705683047079,-500.0,0.00021917,2]
[312185659,1705683047088,-502.29180648,0.00021917,2]
[312185661,1705683047097,-500.0,0.00021917,2]
[312185663,1705683047106,-500.0,0.00021917,2]
[312185665,1705683047116,-1399.75,0.00021917,2]
[312185667,1705683047125,-910.55,0.00021917,2]
[312185669,1705683047134,-500.0,0.00021917,2]
[312185671,1705683047144,-300.0,0.00021917,2]
[312185673,1705683047153,-500.0,0.00021917,2]
[312185675,1705683047162,-500.0,0.00021917,2]
[312185676,1705683047171,-500.0,0.00021917,2]
[312185678,1705683047180,-500.0,0.00021917,2]
[312185680,1705683047189,-500.0,0.00021917,2]
[312185682,1705683047199,-5160.63,0.00021917,2]
[312185684,1705683047208,-500.0,0.00021917,2]
[312185686,1705683047217,-1994.62,0.00021917,2]
[312185688,1705683047227,-500.0,0.00021917,2]
[312185690,1705683047236,-500.0,0.00021917,2]
[312185692,1705683047245,-500.0,0.00021917,2]
[312185694,1705683047254,-500.0,0.00021917,2]
[312185696,1705683047265,-500.0,0.00021917,2]
[312185698,1705683047275,-500.0,0.00021917,2]
[312185700,1705683047283,-500.0,0.00021917,2]
[312185702,1705683047292,-500.0,0.00021917,2]
[312185703,1705683047302,-2677.63,0.00021917,2]
[312185705,1705683047311,-1219.36,0.00021917,2]
[312185707,1705683047320,-500.0,0.00021917,2]
[312185709,1705683047330,-500.0,0.00021917,2]
[312185710,1705683047338,-500.0,0.00021917,2]
[312185711,1705683047347,-500.0,0.00021917,2]
[312185712,1705683047356,-500.0,0.00021917,2]
[312185713,1705683047365,-2762.28,0.00021917,2]
[312185714,1705683047374,-263.69342438,0.00021917,2]
[312185715,1705683047383,-500.0,0.00021917,2]
[312185716,1705683047391,-500.0,0.00021917,2]
[312185717,1705683047400,-543.99,0.00021917,2]
[312185718,1705683047410,-1517.14,0.00021917,2]
[312185719,1705683047419,-7639.24,0.00021917,2]
[312185720,1705683047428,-500.0,0.00021917,2]
[312185721,1705683047437,-500.0,0.00021917,2]
[312185722,1705683047446,-500.0,0.00021917,2]
[312185723,1705683047456,-500.0,0.00021917,2]
[312185724,1705683047465,-500.0,0.00021917,2]
[312185725,1705683047474,-507.19544504,0.00021917,2]
[312185726,1705683047483,-1000.0,0.00021917,7]
[312185727,1705683047492,-562.9,0.00021917,2]
[312185728,1705683047501,-500.0,0.00021917,2]
[312185729,1705683047512,-500.0,0.00021917,2]
[312185730,1705683047521,-500.0,0.00021917,2]
[312185731,1705683047530,-500.0,0.00021917,2]
[312185732,1705683047539,-1181.95,0.00021917,2]
[312185733,1705683047549,-500.0,0.00021917,2]
[312185734,1705683047558,-525.33,0.00021917,2]
[312185735,1705683047567,-500.0,0.00021917,2]
[312185736,1705683047577,-500.0,0.00021917,2]
[312185737,1705683047586,-2103.6,0.00021917,2]
[312185738,1705683047595,-500.0,0.00021917,2]
[312185739,1705683047604,-500.0,0.00021917,2]
[312185740,1705683047613,-504.94,0.00021917,2]
[312185741,1705683047622,-500.0,0.00021917,2]
[312185742,1705683047637,-500.0,0.00021917,2]
[312185743,1705683047646,-500.0,0.00021917,2]
[312185744,1705683047657,-500.0,0.00021917,2]
[312185745,1705683047666,-500.0,0.00021917,2]
[312185746,1705683047675,-500.0,0.00021917,2]
[312185747,1705683047685,-500.0,0.00021917,2]
[312185748,1705683047694,-500.0,0.00021917,2]
[312185749,1705683047704,-831.41,0.00021917,2]
[312185750,1705683047714,-500.0,0.00021917,2]
[312185751,1705683047723,-500.0,0.00021917,2]
[312185752,1705683047732,-500.0,0.00021917,2]
[312185753,1705683047741,-500.0,0.00021917,2]
[312185754,1705683047749,-500.0,0.00021917,2]
[312185755,1705683047758,-500.0,0.00021917,2]
[312185756,1705683047771,-500.0,0.00021917,2]
[312185757,1705683047780,-746.32,0.00021917,2]
[312185758,1705683047789,-500.0,0.00021917,2]
[312185759,1705683047798,-500.0,0.00021917,2]
[312185760,1705683047807,-500.0,0.00021917,2]
[312185761,1705683047816,-500.0,0.00021917,2]
[312185762,1705683047825,-1630.13,0.00021917,2]
[312185763,1705683047835,-500.0,0.00021917,2]
[312185764,1705683047844,-500.0,0.00021917,2]
[312185765,1705683047852,-551.29,0.00021917,2]
[312185766,1705683047862,-500.0,0.00021917,2]
[312185767,1705683047871,-500.0,0.00021917,2]
[312185768,1705683047880,-500.0,0.00021917,2]
[312185769,1705683047889,-500.0,0.00021917,2]
[312185770,1705683047897,-500.0,0.00021917,2]
[312185771,1705683047907,-592.86805638,0.00021917,2]
[312185772,1705683047915,-1742.38,0.00021917,2]
[312185773,1705683047925,-500.0,0.00021917,2]
[312185774,1705683047934,-590.21,0.00021917,2]
[312185775,1705683047942,-953.53,0.00021917,2]
[312185776,1705683047951,-500.0,0.00021917,2]
[312185777,1705683047960,-500.0,0.00021917,2]
[312185778,1705683047969,-1292.52,0.00021917,2]
[312185779,1705683047978,-500.0,0.00021917,2]
[312185780,1705683047988,-500.0,0.00021917,2]
[312185781,1705683047997,-500.0,0.00021917,2]
[312185782,1705683048006,-500.0,0.00021917,2]
[312185783,1705683048018,-500.0,0.00021917,2]
[312185784,1705683048027,-500.0,0.00021917,2]
[312185785,1705683048036,-502.67295192,0.00021917,2]
[312185786,1705683048045,-500.0,0.00021917,2]
[312185787,1705683048055,-500.0,0.00021917,2]
[312185788,1705683048064,-500.0,0.00021917,2]
[312185789,1705683048073,-500.0,0.00021917,2]
[312185790,1705683048083,-500.0,0.00021917,2]
[312185791,1705683048092,-1110.63,0.00021917,2]
[312185792,1705683048102,-500.0,0.00021917,2]
[312185793,1705683048111,-500.0,0.00021917,2]
[312185794,1705683048122,-722.53,0.00021917,2]
[312185795,1705683048131,-500.0,0.00021917,2]
[312185796,1705683048141,-500.0,0.00021917,2]
[312185797,1705683048150,-2642.43,0.00021917,2]
[312185798,1705683048159,-500.0,0.00021917,2]
[312185799,1705683048168,-289.48589963,0.00021917,2]
[312185800,1705683048177,-500.0,0.00021917,2]
[312185801,1705683048187,-500.0,0.00021917,2]
[312185802,1705683048196,-500.0,0.00021917,2]
[312185803,1705683048206,-500.0,0.00021917,2]
[312185804,1705683048216,-500.0,0.00021917,2]
[312185805,1705683048225,-500.0,0.00021917,2]
[312185806,1705683048235,-859.73,0.00021917,2]
[312185807,1705683048246,-500.0,0.00021917,2]
[312185808,1705683048255,-574.31909107,0.00021917,2]
[312185809,1705683048268,-959.38,0.00021917,2]
[312185810,1705683048277,-500.0,0.00021917,2]
[312185811,1705683048286,-5159.53,0.00021917,2]
[312185812,1705683048295,-2527.57,0.00021917,2]
[312185813,1705683048304,-658.67,0.00021917,2]
[312185814,1705683048313,-500.0,0.00021917,2]
[312185815,1705683048322,-500.0,0.00021917,2]
[312185816,1705683048332,-500.0,0.00021917,2]
[312185817,1705683048342,-500.0,0.00021917,2]
[312185818,1705683048351,-634.46,0.00021917,2]
[312185819,1705683048361,-500.0,0.00021917,2]
[312185820,1705683048371,-2418.37,0.00021917,2]
[312185821,1705683048380,-500.0,0.00021917,2]
[312185822,1705683048391,-506.54294702,0.00021917,2]
[312185823,1705683048400,-500.0,0.00021917,2]
[312185824,1705683048409,-503.18528785,0.00021917,2]
[312185825,1705683048419,-645.81,0.00021917,2]
[312185826,1705683048428,-500.0,0.00021917,2]
[312185827,1705683048439,-500.0,0.00021917,2]
[312185828,1705683048449,-1354.15,0.00021917,2]
[312185829,1705683048459,-500.0,0.00021917,2]
[312185830,1705683048469,-500.0,0.00021917,2]
[312185831,1705683048479,-732.88,0.00021917,2]
[312185832,1705683048488,-500.0,0.00021917,2]
[312185833,1705683048497,-500.0,0.00021917,2]
[312185834,1705683048506,-500.0,0.00021917,2]
[312185835,1705683048518,-8044.27,0.00021917,2]
[312185836,1705683048527,-500.0,0.00021917,2]
[312185837,1705683048537,-500.0,0.00021917,2]
[312185838,1705683048667,-500.0,0.00021917,2]
[312185839,1705683048677,-500.0,0.00021917,2]
[312185840,1705683048686,-1071.92,0.00021917,2]
[312185841,1705683048696,-1131.8,0.00021917,2]
[312185842,1705683048706,-500.0,0.00021917,2]
[312185843,1705683048716,-500.0,0.00021917,2]
[312185844,1705683048725,-252.43890462,0.00021917,2]
[312185845,1705683048734,-615.35,0.00021917,2]
[312185846,1705683048744,-500.0,0.00021917,2]
[312185847,1705683048754,-500.0,0.00021917,2]
[312185848,1705683048764,-1266.02,0.00021917,2]
[312185849,1705683048774,-500.0,0.00021917,2]
[312185850,1705683048783,-500.0,0.00021917,2]
[312185851,1705683048793,-1899.77,0.00021917,2]
[312185852,1705683048803,-500.0,0.00021917,2]
[312185853,1705683048812,-500.0,0.00021917,2]
[312185854,1705683048822,-2241.89,0.00021917,2]
[312185855,1705683048831,-500.0,0.00021917,2]
[312185856,1705683048840,-500.0,0.00021917,2]
[312185857,1705683048849,-1121.36,0.00021917,2]
[312185858,1705683048858,-500.0,0.00021917,2]
[312185859,1705683048867,-500.0,0.00021917,2]
[312185860,1705683048877,-500.0,0.00021917,2]
[312185861,1705683048886,-500.0,0.00021917,2]
[312185862,1705683048895,-500.0,0.00021917,2]
[312185863,1705683048905,-828.85,0.00021917,2]
[312185864,1705683048914,-500.0,0.00021917,2]
[312185865,1705683048923,-2489.76,0.00021917,2]
[312185866,1705683048932,-500.0,0.00021917,2]
[312185867,1705683048941,-500.0,0.00021917,2]
[312185868,1705683048951,-500.0,0.00021917,2]
[312185869,1705683048960,-500.0,0.00021917,2]
[312185870,1705683048969,-500.0,0.00021917,2]
[312185871,1705683048978,-500.0,0.00021917,2]
[312185872,1705683048988,-862.17,0.00021917,2]
[312185873,1705683048997,-500.0,0.00021917,2]
[312185874,1705683049006,-500.0,0.00021917,2]
[312185875,1705683049017,-500.0,0.00021917,2]
[312185876,1705683049027,-4391.27,0.00021917,2]
[312185877,1705683049037,-913.21,0.00021917,2]
[312185878,1705683049046,-503.46199713,0.00021917,2]
[312185879,1705683049055,-868.63,0.00021917,2]
[312185880,1705683049065,-500.0,0.00021917,2]
[312185881,1705683049074,-500.0,0.00021917,2]
[312185882,1705683049082,-500.0,0.00021917,2]
[312185883,1705683049091,-500.0,0.00021917,2]
[312185884,1705683049101,-3237.58,0.00021917,2]
[312185885,1705683049110,-500.0,0.00021917,2]
[312185886,1705683049120,-500.0,0.00021917,2]
[312185887,1705683049129,-546.18,0.00021917,2]
[312185888,1705683049138,-500.0,0.00021917,2]
[312185889,1705683049147,-356.30229011,0.00021917,2]
[312185890,1705683049156,-500.0,0.00021917,2]
[312185891,1705683049166,-500.0,0.00021917,2]
[312185892,1705683049175,-1145.26,0.00021917,2]
[312185893,1705683049184,-500.0,0.00021917,2]
[312185894,1705683049194,-500.0,0.00021917,2]
[312185895,1705683049203,-500.0,0.00021917,2]
[312185896,1705683049213,-503.941333,0.00021917,2]
[312185897,1705683049221,-1146.85,0.00021917,2]
[312185898,1705683049231,-500.0,0.00021917,2]
[312185899,1705683049239,-500.0,0.00021917,2]
[312185900,1705683049249,-500.0,0.00021917,2]
[312185901,1705683049259,-500.0,0.00021917,2]
[312185902,1705683049270,-500.0,0.00021917,2]
[312185903,1705683049279,-500.0,0.00021917,2]
[312185904,1705683049289,-500.0,0.00021917,2]
[312185905,1705683049298,-500.0,0.00021917,2]
[312185906,1705683049307,-500.0,0.00021917,2]
[312185907,1705683049317,-1419.61,0.00021917,2]
[312185908,1705683049326,-12838.31,0.00021917,2]
[312185909,1705683049335,-1028.89,0.00021917,2]
[312185910,1705683049345,-2503.12,0.00021917,2]
[312185911,1705683049354,-500.0,0.00021917,2]
[312185912,1705683049364,-500.0,0.00021917,2]
[312185913,1705683049373,-500.0,0.00021917,2]
[312185914,1705683049382,-500.0,0.00021917,2]
[312185915,1705683049391,-1462.96,0.00021917,2]
[312185916,1705683049400,-1261.54,0.00021917,2]
[312185917,1705683049410,-747.07,0.00021917,2]